fUST/lending_fUST_20250224
["ID","MTS","AMOUNT","RATE_DAILY","PERIOD"]
[354249682,1740365445550,-500.0,0.00014191,2]
[354249684,1740365445560,-500.0,0.00014191,2]
[354249686,1740365445570,-500.0,0.00014191,2]
[354249688,1740365445579,-500.0,0.00014191,2]
[354249690,1740365445589,-248.01936,0.00014191,2]
[354249692,1740365445600,-248.01936,0.00014191,2]
[354249694,1740365445610,-834.64,0.00014191,2]
[354249696,1740365445620,-500.0,0.00014191,2]
[354249698,1740365445630,-690.43,0.00014191,2]
[354249700,1740365445639,-991.35,0.00014191,2]
[354249702,1740365445649,-500.0,0.00014191,2]
[354249704,1740365445658,-500.0,0.00014191,2]
[354249706,1740365445668,-500.0,0.00014191,2]
[354249708,1740365445677,-500.0,0.00014191,2]
[354249710,1740365445687,-500.0,0.00014191,2]
[354249712,1740365445696,-294.20488616,0.00014221,2]
[354249714,1740365445709,-705.79511384,0.00014221,2]
[354249716,1740365445718,-1084.84902226,0.00014221,2]
[354249718,1740365445727,-1000.0,0.00014221,2]
[354249720,1740365445736,-500.0,0.00014221,2]
[354249722,1740365445745,-160.0,0.00014246,3]
[354249724,1740365445754,-1866.45,0.00014272,2]
[354249726,1740365445764,-252.97364114,0.00014273,2]
[354249728,1740365445773,-500.0,0.00014273,2]
[354249730,1740365445782,-528.32,0.00014273,2]
[354249732,1740365445791,-500.0,0.00014273,2]
[354249734,1740365445799,-500.0,0.00014273,2]
[354249736,1740365445809,-500.0,0.00014273,2]
[354249738,1740365445818,-1979.58,0.00014273,2]
[354249740,1740365445827,-500.0,0.00014273,2]
[354249742,1740365445837,-500.0,0.00014273,2]
[354249744,1740365445846,-313.01770512,0.00014273,2]
[354249746,1740365445858,-186.98229488,0.00014273,2]
[354249748,1740365445868,-3690.88166619,0.00014273,2]
[354249761,1740365445986,-650.02,0.00010959,2]
[354249763,1740365445996,-500.0,0.00013698,2]
[354249765,1740365446006,-332.084845,0.00013698,2]
[354249768,1740365446017,-169.35288663,0.00013698,2]
[354249770,1740365446026,-500.0,0.00013698,2]
[354249772,1740365446035,-500.0,0.00013698,2]
[354249774,1740365446045,-502.93033872,0.00013698,2]
[354249776,1740365446055,-514.61725389,0.0001378,2]
[354249778,1740365446064,-500.0,0.0001378,2]
[354249780,1740365446073,-1509.04833381,0.00014273,2]
[354249782,1740365446083,-396.29091561,0.00014273,2]
[354249784,1740365446092,-500.0,0.00014273,2]
[354249786,1740365446102,-24.30092778,0.00014273,2]
[354249797,1740365446176,-315.929,0.00014273,2]
[354249800,1740365446188,-159.77007222,0.00014273,2]
[354249802,1740365446197,-500.0,0.00014273,2]
[354249805,1740365446207,-834.64,0.00014273,2]
[354249806,1740365446217,-204.69289335,0.00014273,2]
[354249809,1740365446233,-375.93718181,0.00013698,2]
[354249813,1740365446246,-128.16035764,0.00013698,2]
[354249815,1740365446255,-295.30710665,0.00014273,2]
[354249817,1740365446264,-690.43,0.00014273,2]
[354249819,1740365446274,-991.35,0.00014273,2]
[354249821,1740365446283,-500.0,0.00014273,2]
[354249823,1740365446293,-500.0,0.00014273,2]
[354249825,1740365446302,-500.0,0.00014273,2]
[354249828,1740365446312,-336.38169406,0.00014273,2]
[354249830,1740365446321,-500.0,0.00014273,2]
[354249831,1740365446330,-396.0,0.00014308,2]
[354249833,1740365446340,-563.2107536,0.0001434,2]
[354249836,1740365446350,-1866.45,0.00014355,2]
[354249838,1740365446359,-500.0,0.00014356,2]
[354249839,1740365446368,-528.32,0.00014356,2]
[354249841,1740365446377,-500.0,0.00014356,2]
[354249843,1740365446386,-500.0,0.00014356,2]
[354249845,1740365446395,-500.0,0.00014356,2]
[354249847,1740365446405,-151.0,0.00014356,2]
[354249849,1740365446415,-151.0,0.00014356,2]
[354249851,1740365446423,-151.0,0.00014356,2]
[354249853,1740365446434,-181.259633,0.00014356,2]
[354249855,1740365446445,-151.0,0.00014356,2]
[354249857,1740365446454,-1182.1102717,0.00014356,2]
[354249885,1740365446715,-500.0,0.00013698,2]
[354249890,1740365446724,-788.26418683,0.00014356,2]
[354249891,1740365446810,-9.20554147,0.00014356,2]
[354249892,1740365446820,-500.0,0.00014356,2]
[354249894,1740365446829,-5199.93,0.00014356,2]
[354249895,1740365446838,-500.0,0.00014356,2]
[354249896,1740365446848,-435.05575113,0.00014356,2]
[354249897,1740365446857,-834.64,0.00014356,2]
[354249898,1740365446867,-500.0,0.00014356,2]
[354249899,1740365446877,-690.43,0.00014356,2]
[354249900,1740365446886,-991.35,0.00014356,2]
[354249901,1740365446895,-500.0,0.00014356,2]
[354249902,1740365446905,-500.0,0.00014356,2]
[354249903,1740365446914,-589.32615907,0.00014356,2]
[354249904,1740365446926,-60.29957338,0.00014356,2]
[354249905,1740365446935,-500.0,0.00014356,2]
[354249906,1740365446946,-500.0,0.00014438,2]
[354249907,1740365446958,-528.32,0.00014438,2]
[354249908,1740365446969,-500.0,0.00014438,2]
[354249909,1740365446978,-500.0,0.00014438,2]
[354249910,1740365446987,-500.0,0.00014438,2]
[354249911,1740365446997,-1979.58,0.00014438,2]
[354249912,1740365447006,-500.0,0.00014438,2]
[354249913,1740365447015,-151.0,0.00014438,2]
[354249914,1740365447025,-151.0,0.00014438,2]
[354249915,1740365447034,-1370.14174821,0.00014438,2]
[354249916,1740365447046,-3829.78825179,0.00014438,2]
[354249917,1740365447055,-164.07644921,0.00014438,2]
[354249918,1740365447067,-393.86880308,0.00014438,2]
[354249919,1740365447076,-209.9590158,0.00014438,2]
[354249993,1740365531072,500.0,0.00019,120]
[354249994,1740365586696,421.0,0.00019,120]
[354249995,1740365621922,224.370194,9.041e-05,2]
[354250042,1740366632047,-300.0,9.999e-05,2]
[354250044,1740366632056,-1513.79591546,0.0001,2]
[354250046,1740366632068,-1303.20408454,0.0001,2]
[354250048,1740366632077,-2498.69514586,0.0001,2]
[354250050,1740366632089,-316.30485414,0.0001,2]
[354250052,1740366632098,-2239.46477307,0.0001,2]
[354250055,1740366632110,-300.0,0.0001,2]
[354250059,1740366632153,-275.53522693,0.0001,2]
[354250061,1740366632163,-2815.0,0.0001,2]
[354250062,1740366632173,-1476.6318485,0.0001,2]
[354250063,1740366632184,-933.12684086,0.0001,2]
[354250099,1740366637884,-405.24131064,0.0001,2]
[354250101,1740366637894,-2815.0,0.0001,2]
[354250103,1740366637905,-500.0,0.00010959,2]
[354250105,1740366637914,-500.0,0.00010959,2]
[354250107,1740366637924,-541.68,0.00010959,2]
[354250109,1740366637933,-451.4,0.00010959,2]
[354250111,1740366637942,-376.17,0.00010959,2]
[354250113,1740366637952,-313.48,0.00010959,2]
[354250115,1740366637961,-261.23,0.00010959,2]
[354250117,1740366637970,-217.69,0.00010959,2]
[354250119,1740366637979,-181.41,0.00010959,2]
[354250121,1740366637988,-151.17,0.00010959,2]
[354250123,1740366637997,-151.17,0.00010959,2]
[354250125,1740366638006,-604.73,0.00010959,2]
[354250127,1740366638016,-854.03,0.00010959,2]
[354250129,1740366638026,-249.48865943,0.00013598,2]
[354250131,1740366638035,-572.73080392,0.00013673,2]
[354250133,1740366638045,-498.81463529,0.00013698,2]
[354250135,1740366638054,-330.13057806,0.00013698,2]
[354250137,1740366638063,-500.0,0.00013698,2]
[354250139,1740366638072,-523.39485653,0.00013698,2]
[354250141,1740366638081,-500.0,0.00013698,2]
[354250143,1740366638091,-502.9017628,0.00013698,2]
[354250145,1740366638100,-500.0,0.00013698,2]
[354250147,1740366638109,-503.62871585,0.00013698,2]
[354250148,1740366638118,-502.32071059,0.00013698,2]
[354250150,1740366638127,-504.74236276,0.00013698,2]
[354250151,1740366638137,-500.0,0.00013698,2]
[354250152,1740366638146,-536.61073134,0.00013698,2]
[354250153,1740366638155,-500.0,0.00013698,2]
[354250154,1740366638165,-500.0,0.00013698,2]
[354250156,1740366638174,-500.0,0.00013698,2]
[354250158,1740366638182,-500.0,0.00013698,2]
[354250160,1740366638191,-501.84367678,0.00013698,2]
[354250162,1740366638200,-501.24109588,0.00013698,2]
[354250164,1740366638209,-503.48296828,0.00013698,2]
[354250166,1740366638218,-501.68615155,0.00013698,2]
[354250168,1740366638227,-503.05621236,0.00013698,2]
[354250170,1740366638237,-500.0,0.00013698,2]
[354250172,1740366638246,-568.04586127,0.00013698,2]
[354250174,1740366638255,-505.03334629,0.00013698,2]
[354250176,1740366638264,-505.38297307,0.00013698,2]
[354250178,1740366638273,-504.08221958,0.00013698,2]
[354250180,1740366638282,-502.04713112,0.00013698,2]
[354250182,1740366638292,-502.60469467,0.00013698,2]
[354250184,1740366638300,-502.27167066,0.00013698,2]
[354250186,1740366638309,-505.42808029,0.00013698,2]
[354250188,1740366638318,-502.35941768,0.00013698,2]
[354250190,1740366638327,-500.0,0.00013698,2]
[354250192,1740366638337,-502.80281765,0.00013698,2]
[354250194,1740366638346,-502.44694421,0.00013698,2]
[354250196,1740366638355,-500.0,0.00013698,2]
[354250198,1740366638364,-157.84752274,0.00013698,2]
[354250200,1740366638373,-500.0,0.00013698,2]
[354250202,1740366638383,-501.04333188,0.00013698,2]
[354250204,1740366638392,-500.98062532,0.00013698,2]
[354250206,1740366638401,-512.27054454,0.00013698,2]
[354250208,1740366638410,-502.90002585,0.00013698,2]
[354250210,1740366638420,-504.56518674,0.00013698,2]
[354250211,1740366638429,-401.33479449,0.00013698,2]
[354250213,1740366638439,-500.0,0.00013698,2]
[354250215,1740366638449,-501.59471906,0.00013698,2]
[354250217,1740366638458,-500.0,0.00013698,2]
[354250219,1740366638467,-500.0,0.00013698,2]
[354250221,1740366638476,-500.0,0.00013698,2]
[354250223,1740366638486,-507.39517375,0.00013698,2]
[354250225,1740366638495,-500.0,0.00013698,2]
[354250227,1740366638504,-343.98942279,0.00013698,2]
[354250229,1740366638514,-223.37241764,0.00013698,2]
[354250231,1740366638523,-500.0,0.00013698,2]
[354250233,1740366638533,-500.0,0.00013698,2]
[354250235,1740366638543,-506.89229684,0.00013698,2]
[354250237,1740366638552,-501.9227434,0.00013698,2]
[354250239,1740366638562,-500.0,0.00013698,2]
[354250241,1740366638571,-500.0,0.00013698,2]
[354250243,1740366638580,-500.0,0.00013698,2]
[354250245,1740366638590,-500.0,0.00013698,2]
[354250246,1740366638599,-500.0,0.00013698,2]
[354250248,1740366638608,-500.0,0.00013698,2]
[354250250,1740366638617,-500.0,0.00013698,2]
[354250252,1740366638627,-500.0,0.00013698,2]
[354250255,1740366638637,-500.0,0.00013698,2]
[354250256,1740366638646,-504.09399235,0.00013698,2]
[354250258,1740366638655,-500.0,0.00013698,2]
[354250260,1740366638665,-500.0,0.00013698,2]
[354250262,1740366638674,-500.0,0.00013698,2]
[354250264,1740366638683,-506.85674753,0.00013698,2]
[354250266,1740366638693,-500.0,0.00013698,2]
[354250269,1740366638702,-500.0,0.00013698,2]
[354250271,1740366638712,-500.0,0.00013698,2]
[354250273,1740366638721,-500.0,0.00013698,2]
[354250275,1740366638730,-500.0,0.00013698,2]
[354250277,1740366638739,-500.0,0.00013698,2]
[354250279,1740366638748,-500.0,0.00013698,2]
[354250281,1740366638758,-500.0,0.00013698,2]
[354250283,1740366638767,-500.0,0.00013698,2]
[354250285,1740366638777,-500.0,0.00013698,2]
[354250287,1740366638786,-500.0,0.00013698,2]
[354250289,1740366638795,-500.0,0.00013698,2]
[354250291,1740366638805,-504.06244333,0.00013698,2]
[354250293,1740366638814,-500.0,0.00013698,2]
[354250295,1740366638823,-500.0,0.00013698,2]
[354250297,1740366638833,-500.0,0.00013698,2]
[354250299,1740366638842,-500.0,0.00013698,2]
[354250301,1740366638851,-500.0,0.00013698,2]
[354250303,1740366638864,-500.0,0.00013698,2]
[354250305,1740366638873,-500.0,0.00013698,2]
[354250307,1740366638883,-500.0,0.00013698,2]
[354250309,1740366638892,-500.0,0.00013698,2]
[354250311,1740366638902,-500.76379917,0.00013698,2]
[354250313,1740366638912,-508.92308466,0.00013698,2]
[354250315,1740366638921,-500.0,0.00013698,2]
[354250316,1740366638931,-501.43888378,0.00013698,2]
[354250318,1740366638940,-500.0,0.00013698,2]
[354250320,1740366638950,-501.35330829,0.00013698,2]
[354250322,1740366638959,-500.0,0.00013698,2]
[354250324,1740366638969,-507.56931099,0.00013698,2]
[354250326,1740366638978,-500.0,0.00013698,2]
[354250328,1740366638987,-502.84101969,0.00013698,2]
[354250330,1740366638996,-502.49625367,0.00013698,2]
[354250332,1740366639006,-500.0,0.00013698,2]
[354250334,1740366639015,-505.08547009,0.00013698,2]
[354250336,1740366639024,-500.0,0.00013698,2]
[354250338,1740366639033,-500.0,0.00013698,2]
[354250351,1740366639139,-500.0,0.00013698,2]
[354250353,1740366639149,-503.02718106,0.00013698,2]
[354250355,1740366639159,-623.57283787,0.00013698,2]
[354250357,1740366639168,-500.0,0.00013698,2]
[354250359,1740366639178,-504.42450694,0.00013698,2]
[354250361,1740366639186,-500.0,0.00013698,2]
[354250363,1740366639196,-500.0,0.00013698,2]
[354250365,1740366639206,-500.0,0.00013698,2]
[354250367,1740366639215,-500.0,0.00013698,2]
[354250369,1740366639224,-500.0,0.00013698,2]
[354250371,1740366639233,-500.0,0.00013698,2]
[354250373,1740366639243,-281.5646061,0.00013698,2]
[354250375,1740366639252,-500.0,0.00013698,2]
[354250377,1740366639262,-500.0,0.00013698,2]
[354250379,1740366639271,-500.0,0.00013698,2]
[354250381,1740366639281,-500.0,0.00013698,2]
[354250383,1740366639289,-500.0,0.00013698,2]
[354250385,1740366639300,-500.0,0.00013698,2]
[354250387,1740366639309,-526.56,0.00013698,2]
[354250389,1740366639318,-1601.07,0.00013698,2]
[354250391,1740366639328,-500.0,0.00013698,2]
[354250393,1740366639337,-500.0,0.00013698,2]
[354250395,1740366639347,-502.38603964,0.00013698,2]
[354250397,1740366639356,-500.0,0.00013698,2]
[354250399,1740366639365,-500.0,0.00013698,2]
[354250401,1740366639374,-501.65926526,0.00013698,2]
[354250403,1740366639384,-500.0,0.00013698,2]
[354250405,1740366639395,-500.0,0.00013698,2]
[354250407,1740366639404,-500.0,0.00013698,2]
[354250409,1740366639413,-501.74982247,0.00013698,2]
[354250411,1740366639423,-502.57513052,0.00013698,2]
[354250413,1740366639432,-500.0,0.00013698,2]
[354250415,1740366639442,-502.5138499,0.00013698,2]
[354250417,1740366639452,-500.0,0.00013698,2]
[354250420,1740366639461,-502.08602742,0.00013698,2]
[354250422,1740366639471,-500.0,0.00013698,2]
[354250424,1740366639480,-500.0,0.00013698,2]
[354250426,1740366639490,-500.0,0.00013698,2]
[354250428,1740366639500,-500.0,0.00013698,2]
[354250431,1740366639510,-500.0,0.00013698,2]
[354250434,1740366639519,-491.46217914,0.00013698,2]
[354250436,1740366639529,-500.0,0.00013698,2]
[354250437,1740366639537,-502.98124474,0.00013698,2]
[354250440,1740366639547,-503.16799574,0.00013698,2]
[354250442,1740366639557,-502.14532878,0.00013698,2]
[354250444,1740366639567,-504.88630154,0.00013698,2]
[354250446,1740366639576,-500.0,0.00013698,2]
[354250448,1740366639586,-500.0,0.00013698,2]
[354250450,1740366639595,-505.68131978,0.00013698,2]
[354250452,1740366639604,-500.0,0.00013698,2]
[354250454,1740366639614,-500.0,0.00013698,2]
[354250456,1740366639624,-508.46480841,0.00013698,2]
[354250458,1740366639633,-975.68,0.00013698,2]
[354250460,1740366639643,-500.0,0.00013698,2]
[354250462,1740366639653,-975.68,0.00013698,2]
[354250464,1740366639663,-500.0,0.00013698,2]
[354250466,1740366639673,-975.68,0.00013698,2]
[354250468,1740366639682,-975.68,0.00013698,2]
[354250470,1740366639692,-975.68,0.00013698,2]
[354250472,1740366639702,-975.68,0.00013698,2]
[354250474,1740366639711,-975.68,0.00013698,2]
[354250476,1740366639721,-975.68,0.00013698,2]
[354250478,1740366639730,-501.9215107,0.00013698,2]
[354250480,1740366639739,-500.0,0.00013698,2]
[354250482,1740366639748,-500.0,0.00013698,2]
[354250484,1740366639758,-500.0,0.00013698,2]
[354250486,1740366639767,-500.0,0.00013698,2]
[354250488,1740366639776,-3776.78,0.00013698,2]
[354250490,1740366639785,-500.0,0.00013698,2]
[354250492,1740366639795,-502.98346948,0.00013698,2]
[354250494,1740366639804,-500.0,0.00013698,2]
[354250496,1740366639813,-500.0,0.00013698,2]
[354250498,1740366639822,-500.0,0.00013698,2]
[354250500,1740366639831,-500.0,0.00013698,2]
[354250502,1740366639840,-500.0,0.00013698,2]
[354250504,1740366639849,-500.0,0.00013698,2]
[354250506,1740366639861,-500.0,0.00013698,2]
[354250508,1740366639870,-500.0,0.00013698,2]
[354250510,1740366639880,-503.91076389,0.00013698,2]
[354250512,1740366639889,-500.0,0.00013698,2]
[354250514,1740366639899,-500.0,0.00013698,2]
[354250515,1740366639908,-500.0,0.00013698,2]
[354250517,1740366639917,-326.79049887,0.00013698,2]
[354250519,1740366639926,-502.02142097,0.00013698,2]
[354250521,1740366639937,-500.0,0.00013698,2]
[354250523,1740366639947,-500.0,0.00013698,2]
[354250525,1740366639958,-500.0,0.00013698,2]
[354250527,1740366639967,-500.0,0.00013698,2]
[354250529,1740366639976,-500.0,0.00013698,2]
[354250531,1740366639985,-500.0,0.00013698,2]
[354250533,1740366639995,-500.0,0.00013698,2]
[354250535,1740366640005,-500.0,0.00013698,2]
[354250537,1740366640014,-500.0,0.00013698,2]
[354250539,1740366640023,-544.16,0.00013698,2]
[354250541,1740366640033,-500.0,0.00013698,2]
[354250543,1740366640042,-966.03,0.00013698,2]
[354250545,1740366640051,-500.0,0.00013698,2]
[354250547,1740366640060,-500.0,0.00013698,2]
[354250549,1740366640069,-500.0,0.00013698,2]
[354250551,1740366640078,-500.0,0.00013698,2]
[354250553,1740366640088,-506.00789624,0.00013698,2]
[354250556,1740366640098,-500.0,0.00013698,2]
[354250558,1740366640108,-500.0,0.00013698,2]
[354250560,1740366640117,-680.72,0.00013698,2]
[354250562,1740366640126,-500.0,0.00013698,2]
[354250563,1740366640135,-500.0,0.00013698,2]
[354250566,1740366640145,-505.83798457,0.00013698,2]
[354250568,1740366640154,-500.0,0.00013698,2]
[354250570,1740366640163,-500.0,0.00013698,2]
[354250572,1740366640172,-500.0,0.00013698,2]
[354250574,1740366640182,-500.0,0.00013698,2]
[354250576,1740366640191,-500.0,0.00013698,2]
[354250578,1740366640201,-508.22781214,0.00013698,2]
[354250580,1740366640210,-503.23305167,0.00013698,2]
[354250582,1740366640219,-500.0,0.00013698,2]
[354250584,1740366640229,-500.0,0.00013698,2]
[354250586,1740366640238,-500.0,0.00013698,2]
[354250588,1740366640247,-500.0,0.00013698,2]
[354250590,1740366640256,-500.0,0.00013698,2]
[354250591,1740366640266,-500.0,0.00013698,2]
[354250594,1740366640276,-500.0,0.00013698,2]
[354250595,1740366640285,-500.0,0.00013698,2]
[354250597,1740366640294,-500.0,0.00013698,2]
[354250600,1740366640303,-500.0,0.00013698,2]
[354250602,1740366640313,-502.10693149,0.00013698,2]
[354250604,1740366640322,-381.77816719,0.00013698,2]
[354250606,1740366640332,-500.0,0.00013698,2]
[354250608,1740366640340,-500.0,0.00013698,2]
[354250610,1740366640350,-286.19319736,0.00013698,2]
[354250612,1740366640359,-500.0,0.00013698,2]
[354250614,1740366640369,-1356.6713653,0.00013699,2]
[354250616,1740366640378,-203.546195,0.00013699,2]
[354250618,1740366640387,-260.84108868,0.00013762,2]
[354250620,1740366640396,-6783.9683807,0.00013763,2]
[354250622,1740366640413,-9500.0,0.00013763,2]
[354250624,1740366640423,-12294.1784254,0.00013763,2]
[354250627,1740366640439,-409.36086168,0.00013763,2]
[354250629,1740366640450,-1642.79893478,0.00013763,2]
[354250632,1740366640462,-8354.61262587,0.00013763,2]
[354250633,1740366640471,-500.0,0.00013773,2]
[354250635,1740366640480,-500.0,0.00013778,2]
[354250637,1740366640489,-975.68,0.00013779,2]
[354250640,1740366640499,-975.68,0.00013779,2]
[354250641,1740366640508,-975.68,0.00013779,2]
[354250643,1740366640517,-391.55670189,0.0001378,2]
[354250645,1740366640527,-511.18535275,0.0001378,2]
[354250648,1740366640536,-508.41163785,0.0001378,2]
[354250649,1740366640546,-500.0,0.0001378,2]
[354250651,1740366640555,-595.14815486,0.0001378,2]
[354250653,1740366640564,-500.0,0.0001378,2]
[354250655,1740366640573,-503.93801337,0.0001378,2]
[354250657,1740366640582,-500.0,0.0001378,2]
[354250659,1740366640591,-167.67646269,0.0001378,2]
[354250661,1740366640601,-506.84957637,0.0001378,2]
[354250663,1740366640610,-500.0,0.0001378,2]
[354250666,1740366640619,-500.0,0.0001378,2]
[354250668,1740366640629,-514.92706436,0.0001378,2]
[354250670,1740366640639,-500.0,0.0001378,2]
[354250672,1740366640649,-500.0,0.0001378,2]
[354250674,1740366640659,-500.0,0.0001378,2]
[354250676,1740366640668,-500.0,0.0001378,2]
[354250678,1740366640677,-500.0,0.0001378,2]
[354250680,1740366640687,-500.0,0.0001378,2]
[354250682,1740366640696,-500.0,0.0001378,2]
[354250684,1740366640705,-500.0,0.0001378,2]
[354250686,1740366640714,-500.0,0.0001378,2]
[354250688,1740366640724,-500.0,0.0001378,2]
[354250690,1740366640733,-500.0,0.0001378,2]
[354250692,1740366640742,-500.0,0.0001378,2]
[354250694,1740366640751,-509.260494,0.0001378,2]
[354250696,1740366640760,-508.75587741,0.0001378,2]
[354250698,1740366640769,-500.0,0.0001378,2]
[354250700,1740366640779,-500.0,0.0001378,2]
[354250702,1740366640789,-500.0,0.0001378,2]
[354250704,1740366640798,-500.0,0.0001378,2]
[354250706,1740366640808,-454.95545159,0.0001378,2]
[354250708,1740366640821,-45.04454841,0.0001378,2]
[354250710,1740366640830,-500.0,0.0001378,2]
[354250712,1740366640839,-389.95545159,0.0001378,2]
[354250715,1740366640851,-117.74553611,0.0001378,2]
[354250717,1740366640864,-228.38024823,0.0001378,2]
[354250719,1740366640875,-271.61975177,0.0001378,2]
[354250721,1740366640884,-500.0,0.0001378,2]
[354250723,1740366640893,-500.0,0.0001378,2]
[354250725,1740366640902,-500.0,0.0001378,2]
[354250727,1740366640912,-500.0,0.0001378,2]
[354250729,1740366640921,-500.0,0.0001378,2]
[354250731,1740366640930,-500.0,0.0001378,2]
[354250732,1740366640940,-500.0,0.0001378,2]
[354250734,1740366640950,-500.0,0.0001378,2]
[354250736,1740366640959,-627.53242676,0.0001378,2]
[354250738,1740366640968,-234.67620506,0.0001378,2]
[354250740,1740366640979,-101.58603934,0.0001378,2]
[354250742,1740366640989,-500.0,0.0001378,2]
[354250744,1740366640998,-241.69621757,0.0001378,2]
[354250747,1740366641009,-258.30378243,0.0001378,2]
[354250749,1740366641018,-503.62570242,0.0001378,2]
[354250750,1740366641027,-500.0,0.0001378,2]
[354250752,1740366641036,-502.78839442,0.0001378,2]
[354250754,1740366641045,-500.0,0.0001378,2]
[354250756,1740366641054,-500.0,0.0001378,2]
[354250758,1740366641063,-500.0,0.0001378,2]
[354250760,1740366641072,-616.80657005,0.0001378,2]
[354250762,1740366641082,-208.8030192,0.0001378,2]
[354250764,1740366641091,-500.0,0.0001378,2]
[354250766,1740366641100,-500.0,0.0001378,2]
[354250768,1740366641108,-500.0,0.0001378,2]
[354250770,1740366641118,-500.0,0.0001378,2]
[354250772,1740366641126,-1601.07,0.0001378,2]
[354250774,1740366641136,-500.0,0.0001378,2]
[354250776,1740366641146,-500.0,0.0001378,2]
[354250778,1740366641155,-500.0,0.0001378,2]
[354250780,1740366641164,-500.0,0.0001378,2]
[354250782,1740366641174,-500.0,0.0001378,2]
[354250784,1740366641183,-500.0,0.0001378,2]
[354250786,1740366641192,-500.0,0.0001378,2]
[354250788,1740366641202,-500.0,0.0001378,2]
[354250790,1740366641211,-510.69315172,0.0001378,2]
[354250792,1740366641222,-242.49361719,0.0001378,2]
[354250794,1740366641232,-500.0,0.0001378,2]
[354250796,1740366641242,-450.5749384,0.0001378,2]
[354250798,1740366641252,-503.54968242,0.0001378,2]
[354250800,1740366641261,-507.08055702,0.0001378,2]
[354250802,1740366641270,-500.0,0.0001378,2]
[354250804,1740366641279,-3776.78,0.0001378,2]
[354250806,1740366641288,-500.0,0.0001378,2]
[354250807,1740366641297,-500.0,0.0001378,2]
[354250810,1740366641376,-500.0,0.0001378,2]
[354250811,1740366641395,-500.0,0.0001378,2]
[354250812,1740366641404,-500.0,0.0001378,2]
[354250813,1740366641413,-500.0,0.0001378,2]
[354250814,1740366641423,-500.0,0.0001378,2]
[354250815,1740366641431,-500.0,0.0001378,2]
[354250816,1740366641441,-500.0,0.0001378,2]
[354250817,1740366641450,-503.71238754,0.0001378,2]
[354250818,1740366641459,-500.0,0.0001378,2]
[354250819,1740366641468,-500.0,0.0001378,2]
[354250820,1740366641477,-500.0,0.0001378,2]
[354250821,1740366641487,-500.0,0.0001378,2]
[354250822,1740366641496,-500.0,0.0001378,2]
[354250823,1740366641505,-500.0,0.0001378,2]
[354250824,1740366641515,-500.0,0.0001378,2]
[354250825,1740366641524,-500.0,0.0001378,2]
[354250826,1740366641533,-544.16,0.0001378,2]
[354250827,1740366641542,-500.0,0.0001378,2]
[354250828,1740366641551,-966.03,0.0001378,2]
[354250829,1740366641560,-503.90674129,0.0001378,2]
[354250830,1740366641570,-500.0,0.0001378,2]
[354250831,1740366641579,-438.67764991,0.0001378,2]
[354250832,1740366641588,-680.72,0.0001378,2]
[354250833,1740366641597,-500.0,0.0001378,2]
[354250834,1740366641606,-500.0,0.0001378,2]
[354250835,1740366641614,-500.0,0.0001378,2]
[354250836,1740366641623,-500.0,0.0001378,2]
[354250837,1740366641632,-500.0,0.0001378,2]
[354250838,1740366641642,-500.0,0.0001378,2]